[Event "Early-Titled-Tuesday-Blitz-September-05-2023"]
[Site "Chess.com"]
[Date "2023.09.05"]
[Round "6"]
[White "hsd2016"]
[Black "Chessdemon2019"]
[Result "1-0"]
[WhiteElo "2272"]
[BlackElo "2398"]
[TimeControl "180+1"]
[EndTime "9:05:03 PDT"]
[Termination "hsd2016 won by checkmate"]

1. e4 {[%clk 0:03:00.9]} 1... c5 {[%clk 0:02:59.6]} 2. Nf3 {[%clk 0:03:00.2]}
2... d6 {[%clk 0:03:00]} 3. d4 {[%clk 0:03:00.1]} 3... cxd4 {[%clk 0:03:00.6]}
4. Nxd4 {[%clk 0:03:01]} 4... Nf6 {[%clk 0:03:01.1]} 5. Nc3 {[%clk 0:03:01.7]}
5... a6 {[%clk 0:03:01.6]} 6. h3 {[%clk 0:03:01.3]} 6... e5 {[%clk 0:03:01.3]}
7. Nf3 {[%clk 0:03:00.5]} 7... h5 {[%clk 0:03:00.1]} 8. Bc4 {[%clk 0:03:00.7]}
8... b5 {[%clk 0:02:59.3]} 9. Bb3 {[%clk 0:03:00.2]} 9... Be6 {[%clk 0:02:58.3]}
10. Bxe6 {[%clk 0:02:59.5]} 10... fxe6 {[%clk 0:02:58.7]} 11. a3 {[%clk
0:03:00.1]} 11... Nc6 {[%clk 0:02:56.8]} 12. Bg5 {[%clk 0:02:58.1]} 12... Be7
{[%clk 0:02:53.8]} 13. Qd3 {[%clk 0:02:50.4]} 13... O-O {[%clk 0:02:48]} 14. O-O
{[%clk 0:02:47]} 14... Qb6 {[%clk 0:02:38.2]} 15. Rad1 {[%clk 0:02:45]} 15...
Rad8 {[%clk 0:02:32.9]} 16. Nh4 {[%clk 0:02:11.5]} 16... Nh7 {[%clk 0:02:17.2]}
17. Bxe7 {[%clk 0:02:06.1]} 17... Nxe7 {[%clk 0:02:17.5]} 18. Qg3 {[%clk
0:02:04.7]} 18... Kh8 {[%clk 0:02:12.1]} 19. Ng6+ {[%clk 0:02:02.9]} 19... Nxg6
{[%clk 0:02:12.1]} 20. Qxg6 {[%clk 0:02:03.8]} 20... h4 {[%clk 0:02:07.6]} 21.
Qxe6 {[%clk 0:02:02.2]} 21... Rf6 {[%clk 0:02:08]} 22. Qg4 {[%clk 0:02:00.3]}
22... Rf4 {[%clk 0:02:08.2]} 23. Qg6 {[%clk 0:02:00.1]} 23... Rdf8 {[%clk
0:02:07.9]} 24. Nd5 {[%clk 0:01:59.1]} 24... Qc5 {[%clk 0:02:01.5]} 25. Nxf4
{[%clk 0:01:58.7]} 25... Rxf4 {[%clk 0:02:01.9]} 26. Qxd6 {[%clk 0:01:58.8]}
26... Qxc2 {[%clk 0:02:01.6]} 27. Qxe5 {[%clk 0:01:57.1]} 27... Rf8 {[%clk
0:01:58.9]} 28. Rd7 {[%clk 0:01:54.7]} 28... Nf6 {[%clk 0:01:58.7]} 29. Re7
{[%clk 0:01:51.4]} 29... Qd2 {[%clk 0:01:52.5]} 30. Qf5 {[%clk 0:01:28.1]} 30...
Qd6 {[%clk 0:01:31.7]} 31. Re6 {[%clk 0:01:19.3]} 31... Qd8 {[%clk 0:01:29.9]}
32. e5 {[%clk 0:01:13.2]} 32... Nd5 {[%clk 0:01:30.2]} 33. Qh5+ {[%clk
0:01:13.1]} 33... Kg8 {[%clk 0:01:30.6]} 34. Rd6 {[%clk 0:01:12.7]} 34... Qa8
{[%clk 0:01:25]} 35. f3 {[%clk 0:00:30.3]} 35... Ne3 {[%clk 0:01:17.5]} 36. Re1
{[%clk 0:00:27.2]} 36... Nf5 {[%clk 0:01:17.6]} 37. Rg6 {[%clk 0:00:14.8]} 37...
Qa7+ {[%clk 0:01:16.5]} 38. Kh2 {[%clk 0:00:13.3]} 38... Qf2 {[%clk 0:01:16.6]}
39. Re4 {[%clk 0:00:10.3]} 39... Ng3 {[%clk 0:01:12]} 40. Rxg7+ {[%clk
0:00:10.6]} 40... Kxg7 {[%clk 0:01:11.2]} 41. Rg4# {[%clk 0:00:11]} 1-0

[Event "Early-Titled-Tuesday-Blitz-September-05-2023"]
[Site "Chess.com"]
[Date "2023.09.05"]
[Round "6"]
[White "SaiHanThiha"]
[Black "Vesper2018"]
[Result "1/2-1/2"]
[WhiteElo "2476"]
[BlackElo "2580"]
[TimeControl "180+1"]
[EndTime "9:05:06 PDT"]
[Termination "Game drawn by repetition"]

1. Nf3 {[%clk 0:03:00.9]} 1... Nf6 {[%clk 0:02:59.3]} 2. g3 {[%clk 0:03:01.5]}
2... g6 {[%clk 0:03:00]} 3. b3 {[%clk 0:03:00.9]} 3... Bg7 {[%clk 0:03:00.6]} 4.
Bb2 {[%clk 0:03:01.8]} 4... O-O {[%clk 0:02:59.4]} 5. Bg2 {[%clk 0:03:02.3]}
5... c5 {[%clk 0:02:59.7]} 6. O-O {[%clk 0:02:57.8]} 6... d5 {[%clk 0:02:59.6]}
7. c4 {[%clk 0:02:57.3]} 7... d4 {[%clk 0:02:56.3]} 8. b4 {[%clk 0:02:57.4]}
8... Nc6 {[%clk 0:02:44]} 9. b5 {[%clk 0:02:46]} 9... Na5 {[%clk 0:02:37.6]} 10.
d3 {[%clk 0:02:38.3]} 10... Qc7 {[%clk 0:02:35]} 11. Nfd2 {[%clk 0:02:28]} 11...
e5 {[%clk 0:02:33]} 12. Nb3 {[%clk 0:02:28.2]} 12... Nxb3 {[%clk 0:02:31.7]} 13.
axb3 {[%clk 0:02:24.6]} 13... Be6 {[%clk 0:02:25.8]} 14. Ba3 {[%clk 0:02:07.5]}
14... Nd7 {[%clk 0:02:21.9]} 15. b4 {[%clk 0:02:06.1]} 15... Rab8 {[%clk
0:02:10.7]} 16. Nd2 {[%clk 0:02:04.5]} 16... f5 {[%clk 0:02:08.8]} 17. bxc5
{[%clk 0:01:47.1]} 17... Nxc5 {[%clk 0:02:08.4]} 18. Nb3 {[%clk 0:01:47.8]}
18... b6 {[%clk 0:02:04.3]} 19. Bxc5 {[%clk 0:01:39.3]} 19... bxc5 {[%clk
0:02:04.1]} 20. Ra6 {[%clk 0:01:39.3]} 20... Rb6 {[%clk 0:01:57.2]} 21. Qa1
{[%clk 0:01:37.5]} 21... Rf7 {[%clk 0:01:50]} 22. Qa3 {[%clk 0:01:25.5]} 22...
Bf8 {[%clk 0:01:39.2]} 23. Ra1 {[%clk 0:01:25.4]} 23... Rxa6 {[%clk 0:01:38.1]}
24. Qxa6 {[%clk 0:01:26.3]} 24... Qd7 {[%clk 0:01:23.7]} 25. Qc6 {[%clk
0:01:13]} 25... e4 {[%clk 0:01:16.5]} 26. Ra6 {[%clk 0:00:51.9]} 26... Qxc6
{[%clk 0:00:45.6]} 27. Rxc6 {[%clk 0:00:52.8]} 27... Bd7 {[%clk 0:00:41.6]} 28.
Rc7 {[%clk 0:00:51.6]} 28... Be6 {[%clk 0:00:41.6]} 29. Rc6 {[%clk 0:00:42.9]}
29... Bd7 {[%clk 0:00:41.6]} 30. Ra6 {[%clk 0:00:40.2]} 30... Bc8 {[%clk
0:00:41.3]} 31. Rc6 {[%clk 0:00:25.6]} 31... Bd7 {[%clk 0:00:41.2]} 1/2-1/2

[Event "Early-Titled-Tuesday-Blitz-September-05-2023"]
[Site "Chess.com"]
[Date "2023.09.05"]
[Round "6"]
[White "joksijoksi"]
[Black "Jmf24"]
[Result "0-1"]
[WhiteElo "2514"]
[BlackElo "2393"]
[TimeControl "180+1"]
[EndTime "9:05:06 PDT"]
[Termination "Jmf24 won by resignation"]

1. d4 {[%clk 0:03:00.9]} 1... Nf6 {[%clk 0:02:58.9]} 2. c4 {[%clk 0:02:55.8]}
2... g6 {[%clk 0:02:57.5]} 3. Nc3 {[%clk 0:02:55.5]} 3... d5 {[%clk 0:02:57.9]}
4. Qa4+ {[%clk 0:02:32.8]} 4... Bd7 {[%clk 0:02:48.6]} 5. Qb3 {[%clk 0:02:31.4]}
5... dxc4 {[%clk 0:02:48.8]} 6. Qxc4 {[%clk 0:02:18.8]} 6... Bg7 {[%clk
0:02:48.3]} 7. e4 {[%clk 0:02:18.2]} 7... O-O {[%clk 0:02:49]} 8. Nf3 {[%clk
0:02:17.7]} 8... Na6 {[%clk 0:02:48.3]} 9. Be2 {[%clk 0:02:17.1]} 9... c5 {[%clk
0:02:48.4]} 10. d5 {[%clk 0:02:15.4]} 10... e6 {[%clk 0:02:48.3]} 11. O-O {[%clk
0:02:13.2]} 11... exd5 {[%clk 0:02:46.7]} 12. exd5 {[%clk 0:02:13.2]} 12... Bf5
{[%clk 0:02:46]} 13. Bg5 {[%clk 0:02:11.6]} 13... Re8 {[%clk 0:02:46.1]} 14.
Rfd1 {[%clk 0:02:10.1]} 14... Nb4 {[%clk 0:02:46.3]} 15. Bf1 {[%clk 0:02:07.7]}
15... a6 {[%clk 0:02:45.9]} 16. a3 {[%clk 0:02:05.2]} 16... b5 {[%clk
0:02:42.9]} 17. Qxc5 {[%clk 0:02:03.8]} 17... Nc2 {[%clk 0:02:43.2]} 18. Rac1
{[%clk 0:02:02.8]} 18... Rc8 {[%clk 0:02:43.8]} 19. Qa7 {[%clk 0:02:01.5]} 19...
Qd6 {[%clk 0:02:36]} 20. Nd4 {[%clk 0:01:49.8]} 20... Ng4 {[%clk 0:02:27.6]} 21.
g3 {[%clk 0:01:40.6]} 21... Nxd4 {[%clk 0:02:27.2]} 22. Rxd4 {[%clk 0:01:35]}
22... Rc7 {[%clk 0:02:27.3]} 23. Nxb5 {[%clk 0:01:18.1]} 23... axb5 {[%clk
0:02:24.9]} 24. Qxc7 {[%clk 0:01:16.8]} 24... Qxc7 {[%clk 0:02:24.9]} 25. Rxc7
{[%clk 0:01:16.5]} 25... Bxd4 {[%clk 0:02:25.6]} 26. d6 {[%clk 0:01:14.2]} 26...
Bxf2+ {[%clk 0:02:24.5]} 27. Kg2 {[%clk 0:01:13]} 27... Bb6 {[%clk 0:02:02.6]}
28. d7 {[%clk 0:01:10.3]} 28... Rf8 {[%clk 0:01:50.9]} 29. d8=Q {[%clk
0:01:00.8]} 29... Rxd8 {[%clk 0:01:44.4]} 30. Bxd8 {[%clk 0:01:01.7]} 30... Ne3+
{[%clk 0:01:44.5]} 31. Kf3 {[%clk 0:00:39.2]} 31... Bxc7 {[%clk 0:01:44.4]} 32.
Bxb5 {[%clk 0:00:23.4]} 32... Bxd8 {[%clk 0:01:39.6]} 33. Kxe3 {[%clk
0:00:23.7]} 33... Kf8 {[%clk 0:01:36.6]} 34. b4 {[%clk 0:00:23.1]} 34... Bb6+
{[%clk 0:01:36.3]} 35. Kd2 {[%clk 0:00:22.7]} 35... h5 {[%clk 0:01:34.2]} 36. a4
{[%clk 0:00:22.3]} 36... Bg1 {[%clk 0:01:33.8]} 37. a5 {[%clk 0:00:22.4]} 37...
Bxh2 {[%clk 0:01:34.4]} 38. a6 {[%clk 0:00:22.6]} 38... Bxg3 {[%clk 0:01:27.3]}
39. a7 {[%clk 0:00:20.6]} 39... Be4 {[%clk 0:01:27.5]} 40. Ke3 {[%clk
0:00:17.3]} 40... Bb7 {[%clk 0:01:23.8]} 41. Be2 {[%clk 0:00:17.7]} 41... Bh2
{[%clk 0:01:22.4]} 42. Kf2 {[%clk 0:00:17.5]} 42... Bc7 {[%clk 0:01:21.8]} 0-1

[Event "Early-Titled-Tuesday-Blitz-September-05-2023"]
[Site "Chess.com"]
[Date "2023.09.05"]
[Round "6"]
[White "Chernobay_Artem"]
[Black "GrumbleBruno"]
[Result "1-0"]
[WhiteElo "2610"]
[BlackElo "2476"]
[TimeControl "180+1"]
[EndTime "9:05:12 PDT"]
[Termination "Chernobay_Artem won by resignation"]

1. e4 {[%clk 0:02:24.2]} 1... e5 {[%clk 0:02:56.7]} 2. Nc3 {[%clk 0:02:24]} 2...
Bb4 {[%clk 0:02:55.9]} 3. Nd5 {[%clk 0:02:20.9]} 3... Bc5 {[%clk 0:02:55.5]} 4.
Qg4 {[%clk 0:02:17.2]} 4... Kf8 {[%clk 0:02:54.9]} 5. Qg3 {[%clk 0:02:16.6]}
5... c6 {[%clk 0:02:53.5]} 6. Nc3 {[%clk 0:02:16.6]} 6... d6 {[%clk 0:02:48.7]}
7. Nf3 {[%clk 0:02:07.8]} 7... Nf6 {[%clk 0:02:46.6]} 8. Be2 {[%clk 0:02:07.6]}
8... Nh5 {[%clk 0:02:40.3]} 9. Qh4 {[%clk 0:02:07.5]} 9... Qxh4 {[%clk
0:02:39.9]} 10. Nxh4 {[%clk 0:02:08.4]} 10... Nf4 {[%clk 0:02:40.1]} 11. Bf3
{[%clk 0:02:00]} 11... Ng6 {[%clk 0:01:53.9]} 12. Nxg6+ {[%clk 0:01:54.9]} 12...
hxg6 {[%clk 0:01:53.8]} 13. d3 {[%clk 0:01:55.4]} 13... f5 {[%clk 0:01:44.9]}
14. Bg5 {[%clk 0:01:51.5]} 14... Nd7 {[%clk 0:01:42.4]} 15. h4 {[%clk
0:01:46.4]} 15... Nf6 {[%clk 0:01:41.2]} 16. g3 {[%clk 0:01:41.1]} 16... Be6
{[%clk 0:01:33.2]} 17. Rf1 {[%clk 0:01:36.2]} 17... Kf7 {[%clk 0:01:27.9]} 18.
O-O-O {[%clk 0:01:35.1]} 18... fxe4 {[%clk 0:00:56.1]} 19. Nxe4 {[%clk
0:01:27.1]} 19... Nxe4 {[%clk 0:00:54.5]} 20. dxe4 {[%clk 0:01:23.8]} 20... a5
{[%clk 0:00:43.4]} 21. a3 {[%clk 0:01:20.8]} 21... a4 {[%clk 0:00:42.1]} 22. Be2
{[%clk 0:01:19.9]} 22... Bh3 {[%clk 0:00:39.6]} 23. Rg1 {[%clk 0:01:04.9]} 23...
Be6 {[%clk 0:00:38.5]} 24. Rg2 {[%clk 0:00:58.4]} 24... Rhe8 {[%clk 0:00:21.4]}
25. Rh2 {[%clk 0:00:52.1]} 25... Kg8 {[%clk 0:00:20.8]} 26. h5 {[%clk
0:00:50.2]} 26... gxh5 {[%clk 0:00:20.5]} 27. Bxh5 {[%clk 0:00:50]} 27... Bf7
{[%clk 0:00:20.5]} 28. Be2 {[%clk 0:00:50.1]} 28... d5 {[%clk 0:00:19.3]} 29.
Rdh1 {[%clk 0:00:48]} 29... Be6 {[%clk 0:00:18.2]} 30. Bh5 {[%clk 0:00:46.1]}
30... Rec8 {[%clk 0:00:12.9]} 31. Bg6 {[%clk 0:00:45]} 1-0

[Event "Early-Titled-Tuesday-Blitz-September-05-2023"]
[Site "Chess.com"]
[Date "2023.09.05"]
[Round "6"]
[White "Magila31"]
[Black "FuenfgegenWilly"]
[Result "0-1"]
[WhiteElo "2421"]
[BlackElo "2315"]
[TimeControl "180+1"]
[EndTime "9:05:14 PDT"]
[Termination "FuenfgegenWilly won by resignation"]

1. d4 {[%clk 0:02:59.2]} 1... Na6 {[%clk 0:02:58.4]} 2. e4 {[%clk 0:02:57]} 2...
c6 {[%clk 0:02:58.9]} 3. Nc3 {[%clk 0:02:50.9]} 3... Nc7 {[%clk 0:02:57.2]} 4.
Bf4 {[%clk 0:02:46.5]} 4... d5 {[%clk 0:02:58.1]} 5. Bxc7 {[%clk 0:02:44.7]}
5... Qxc7 {[%clk 0:02:58]} 6. exd5 {[%clk 0:02:45]} 6... cxd5 {[%clk 0:02:44.2]}
7. Nxd5 {[%clk 0:02:43.9]} 7... Qa5+ {[%clk 0:02:44.8]} 8. Nc3 {[%clk
0:02:43.4]} 8... Nf6 {[%clk 0:02:45.5]} 9. Nf3 {[%clk 0:02:42.1]} 9... Bg4
{[%clk 0:02:45.5]} 10. Bb5+ {[%clk 0:02:40]} 10... Nd7 {[%clk 0:02:43.1]} 11. h3
{[%clk 0:02:36.2]} 11... a6 {[%clk 0:02:41.9]} 12. hxg4 {[%clk 0:02:18]} 12...
axb5 {[%clk 0:02:41.8]} 13. O-O {[%clk 0:02:05.8]} 13... b4 {[%clk 0:02:41.6]}
14. Ne4 {[%clk 0:02:04.7]} 14... e6 {[%clk 0:02:41.9]} 15. Re1 {[%clk
0:02:01.6]} 15... Qd5 {[%clk 0:02:41.4]} 16. Qd3 {[%clk 0:01:50.7]} 16... Be7
{[%clk 0:02:35]} 17. c4 {[%clk 0:01:48.2]} 17... bxc3 {[%clk 0:02:34.9]} 18.
Nxc3 {[%clk 0:01:48.6]} 18... Qd6 {[%clk 0:02:28.5]} 19. Nb5 {[%clk 0:01:41.3]}
19... Qf4 {[%clk 0:02:16.1]} 20. d5 {[%clk 0:01:36.6]} 20... Nc5 {[%clk
0:02:16]} 21. Qe2 {[%clk 0:01:27.9]} 21... O-O {[%clk 0:02:11.7]} 22. d6 {[%clk
0:01:13.1]} 22... Bd8 {[%clk 0:02:00.6]} 23. Qe5 {[%clk 0:01:06.8]} 23... Qxe5
{[%clk 0:01:52.4]} 24. Nxe5 {[%clk 0:01:04.2]} 24... f6 {[%clk 0:01:52.5]} 25.
Nc4 {[%clk 0:01:02.4]} 25... e5 {[%clk 0:01:49.6]} 26. a3 {[%clk 0:00:51.9]}
26... Ra4 {[%clk 0:01:47.7]} 27. Rac1 {[%clk 0:00:47.6]} 27... Nd3 {[%clk
0:01:48.1]} 28. b3 {[%clk 0:00:40.1]} 28... Ra8 {[%clk 0:01:43.1]} 29. a4 {[%clk
0:00:40.2]} 29... Nxe1 {[%clk 0:01:37]} 30. Rxe1 {[%clk 0:00:39.4]} 30... Kf7
{[%clk 0:01:37.6]} 31. g3 {[%clk 0:00:32.8]} 31... Rc8 {[%clk 0:01:24.5]} 32.
Kg2 {[%clk 0:00:31.8]} 32... Rc5 {[%clk 0:01:24.2]} 33. f4 {[%clk 0:00:26.4]}
33... exf4 {[%clk 0:01:14.5]} 34. gxf4 {[%clk 0:00:26]} 34... h5 {[%clk
0:01:15.2]} 35. Kf3 {[%clk 0:00:19]} 35... hxg4+ {[%clk 0:01:14.9]} 36. Kxg4
{[%clk 0:00:19.5]} 36... Rd5 {[%clk 0:01:15]} 37. Re3 {[%clk 0:00:11.7]} 37...
Rh8 {[%clk 0:01:12.2]} 38. Nc3 {[%clk 0:00:10.9]} 38... Rdh5 {[%clk 0:01:07.2]}
39. Ne4 {[%clk 0:00:10]} 39... f5+ {[%clk 0:01:05.3]} 40. Kf3 {[%clk 0:00:08.4]}
40... Rh3+ {[%clk 0:01:05.5]} 41. Ke2 {[%clk 0:00:08.2]} 41... Rxe3+ {[%clk
0:01:05]} 0-1

[Event "Early-Titled-Tuesday-Blitz-September-05-2023"]
[Site "Chess.com"]
[Date "2023.09.05"]
[Round "6"]
[White "malakismayil"]
[Black "mamey78"]
[Result "1-0"]
[WhiteElo "2530"]
[BlackElo "2611"]
[TimeControl "180+1"]
[EndTime "9:05:20 PDT"]
[Termination "malakismayil won by resignation"]

1. e4 {[%clk 0:03:00.9]} 1... e5 {[%clk 0:00:57.5]} 2. Nf3 {[%clk 0:02:56.9]}
2... Nc6 {[%clk 0:00:57.7]} 3. Bc4 {[%clk 0:02:56.9]} 3... Nf6 {[%clk
0:00:57.5]} 4. d3 {[%clk 0:02:37.1]} 4... Be7 {[%clk 0:00:56.1]} 5. Nc3 {[%clk
0:02:37.5]} 5... d6 {[%clk 0:00:56]} 6. O-O {[%clk 0:02:38.1]} 6... O-O {[%clk
0:00:56]} 7. h3 {[%clk 0:02:38.4]} 7... Be6 {[%clk 0:00:52.2]} 8. Bb3 {[%clk
0:02:38.6]} 8... d5 {[%clk 0:00:52.1]} 9. exd5 {[%clk 0:02:38]} 9... Nxd5 {[%clk
0:00:53]} 10. Re1 {[%clk 0:02:36.9]} 10... Nxc3 {[%clk 0:00:53.3]} 11. bxc3
{[%clk 0:02:37]} 11... Bxb3 {[%clk 0:00:53.3]} 12. axb3 {[%clk 0:02:37.9]} 12...
Bd6 {[%clk 0:00:53.7]} 13. c4 {[%clk 0:02:36]} 13... f6 {[%clk 0:00:53.2]} 14.
Bb2 {[%clk 0:02:31]} 14... Ne7 {[%clk 0:00:51.8]} 15. d4 {[%clk 0:02:30.5]}
15... exd4 {[%clk 0:00:51.2]} 16. Nxd4 {[%clk 0:02:31.4]} 16... Qd7 {[%clk
0:00:51]} 17. Ne6 {[%clk 0:02:26.3]} 17... Rfe8 {[%clk 0:00:49.6]} 18. c5 {[%clk
0:02:25.8]} 18... Ng6 {[%clk 0:00:25.7]} 19. cxd6 {[%clk 0:01:53.2]} 19... Rxe6
{[%clk 0:00:25.9]} 20. Rxe6 {[%clk 0:01:18.8]} 20... Qxe6 {[%clk 0:00:26.8]} 21.
dxc7 {[%clk 0:01:19.3]} 21... Rc8 {[%clk 0:00:25.5]} 22. Qd8+ {[%clk 0:01:17.5]}
22... Kf7 {[%clk 0:00:25.2]} 23. Rd1 {[%clk 0:01:09.7]} 23... Ne7 {[%clk
0:00:22.9]} 24. Ba3 {[%clk 0:00:59.4]} 24... Nc6 {[%clk 0:00:20.4]} 25. Rd7+
{[%clk 0:00:52.6]} 25... Kg6 {[%clk 0:00:20.2]} 26. Qxc8 {[%clk 0:00:52.1]}
26... Qe1+ {[%clk 0:00:20.2]} 27. Kh2 {[%clk 0:00:51.6]} 27... Qe5+ {[%clk
0:00:20.5]} 28. g3 {[%clk 0:00:49.9]} 28... Qe2 {[%clk 0:00:20.2]} 29. Rxg7+
{[%clk 0:00:35.5]} 29... Kxg7 {[%clk 0:00:19.5]} 30. Qg4+ {[%clk 0:00:35.4]}
30... Qxg4 {[%clk 0:00:18.1]} 31. hxg4 {[%clk 0:00:36.3]} 31... Ne7 {[%clk
0:00:18.7]} 32. Bxe7 {[%clk 0:00:34.9]} 1-0

[Event "Early-Titled-Tuesday-Blitz-September-05-2023"]
[Site "Chess.com"]
[Date "2023.09.05"]
[Round "6"]
[White "Boundless_Strike"]
[Black "farzadbfd"]
[Result "0-1"]
[WhiteElo "2533"]
[BlackElo "2706"]
[TimeControl "180+1"]
[EndTime "9:05:24 PDT"]
[Termination "farzadbfd won by resignation"]

1. d3 {[%clk 0:03:00.2]} 1... e5 {[%clk 0:02:59.5]} 2. e4 {[%clk 0:02:59.3]}
2... Nc6 {[%clk 0:02:59.5]} 3. Nf3 {[%clk 0:02:56.1]} 3... Nf6 {[%clk
0:02:58.7]} 4. h3 {[%clk 0:02:54.9]} 4... d5 {[%clk 0:02:58.1]} 5. Nbd2 {[%clk
0:02:54.5]} 5... Bc5 {[%clk 0:02:54]} 6. c3 {[%clk 0:02:53]} 6... O-O {[%clk
0:02:50.1]} 7. Be2 {[%clk 0:02:52.9]} 7... a5 {[%clk 0:02:50.3]} 8. Qc2 {[%clk
0:02:51.8]} 8... Re8 {[%clk 0:02:49.7]} 9. g4 {[%clk 0:02:48.7]} 9... Bf8 {[%clk
0:02:33.4]} 10. Nf1 {[%clk 0:02:46.4]} 10... b6 {[%clk 0:02:21.9]} 11. Ng3
{[%clk 0:02:42.1]} 11... Ba6 {[%clk 0:02:14.7]} 12. g5 {[%clk 0:02:17.4]} 12...
dxe4 {[%clk 0:02:14.7]} 13. dxe4 {[%clk 0:02:14.2]} 13... Nd7 {[%clk 0:02:14.4]}
14. Bxa6 {[%clk 0:02:08.4]} 14... Rxa6 {[%clk 0:02:15.3]} 15. Be3 {[%clk
0:02:04]} 15... a4 {[%clk 0:02:15.3]} 16. Rd1 {[%clk 0:01:54]} 16... Qe7 {[%clk
0:02:13.1]} 17. h4 {[%clk 0:01:20]} 17... Nc5 {[%clk 0:02:09.2]} 18. h5 {[%clk
0:01:18.7]} 18... Qe6 {[%clk 0:02:07.5]} 19. g6 {[%clk 0:01:15.3]} 19... fxg6
{[%clk 0:01:42.3]} 20. hxg6 {[%clk 0:01:15.3]} 20... h6 {[%clk 0:01:37.4]} 21.
Nf5 {[%clk 0:01:06.6]} 21... Ne7 {[%clk 0:01:35.6]} 22. Bxc5 {[%clk 0:00:56]}
22... bxc5 {[%clk 0:01:35.4]} 23. N3h4 {[%clk 0:00:52.8]} 23... Nxf5 {[%clk
0:01:33.8]} 24. Nxf5 {[%clk 0:00:51.2]} 24... Qxa2 {[%clk 0:01:27.8]} 25. Qd3
{[%clk 0:00:43.7]} 25... Rxg6 {[%clk 0:01:20.3]} 26. c4 {[%clk 0:00:39.4]} 26...
Ree6 {[%clk 0:00:55.9]} 27. Qc3 {[%clk 0:00:17.5]} 27... Rb6 {[%clk 0:00:41.8]}
28. Rd2 {[%clk 0:00:09.1]} 28... Qb1+ {[%clk 0:00:40.8]} 29. Rd1 {[%clk
0:00:09.3]} 29... Qxe4+ {[%clk 0:00:41.3]} 30. Kd2 {[%clk 0:00:09.4]} 30... Qxf5
{[%clk 0:00:41.5]} 31. Qe3 {[%clk 0:00:07.5]} 31... Rxb2+ {[%clk 0:00:40.1]} 0-1

[Event "Early-Titled-Tuesday-Blitz-September-05-2023"]
[Site "Chess.com"]
[Date "2023.09.05"]
[Round "6"]
[White "hansen"]
[Black "viktorgen2021"]
[Result "1-0"]
[WhiteElo "2873"]
[BlackElo "2484"]
[TimeControl "180+1"]
[EndTime "9:05:27 PDT"]
[Termination "hansen won on time"]

1. Nf3 {[%clk 0:02:59.3]} 1... Nf6 {[%clk 0:02:46.7]} 2. g3 {[%clk 0:02:51.1]}
2... g6 {[%clk 0:02:46.6]} 3. Bg2 {[%clk 0:02:51.4]} 3... Bg7 {[%clk 0:02:47.3]}
4. O-O {[%clk 0:02:52.3]} 4... O-O {[%clk 0:02:47.9]} 5. c4 {[%clk 0:02:52.9]}
5... d6 {[%clk 0:02:48]} 6. Nc3 {[%clk 0:02:53.1]} 6... Nc6 {[%clk 0:02:48.6]}
7. d3 {[%clk 0:02:52.8]} 7... Nh5 {[%clk 0:02:47.8]} 8. Bd2 {[%clk 0:02:50]}
8... f5 {[%clk 0:02:48]} 9. Rb1 {[%clk 0:02:47.3]} 9... f4 {[%clk 0:02:48.2]}
10. b4 {[%clk 0:02:47.4]} 10... e5 {[%clk 0:02:47.3]} 11. b5 {[%clk 0:02:47.4]}
11... Ne7 {[%clk 0:02:47.5]} 12. Ne4 {[%clk 0:02:42.5]} 12... Rb8 {[%clk
0:02:37.5]} 13. a4 {[%clk 0:02:41.5]} 13... h6 {[%clk 0:02:28]} 14. a5 {[%clk
0:02:38.3]} 14... g5 {[%clk 0:02:28]} 15. b6 {[%clk 0:02:37.9]} 15... axb6
{[%clk 0:02:19.5]} 16. axb6 {[%clk 0:02:38.3]} 16... c6 {[%clk 0:02:20]} 17. c5
{[%clk 0:02:34.1]} 17... d5 {[%clk 0:01:57.8]} 18. Nd6 {[%clk 0:02:33.5]} 18...
Be6 {[%clk 0:01:58.3]} 19. Bc3 {[%clk 0:02:12.1]} 19... d4 {[%clk 0:01:33.4]}
20. Bb4 {[%clk 0:01:59.3]} 20... Nd5 {[%clk 0:01:26.9]} 21. Nd2 {[%clk
0:01:55.1]} 21... Qd7 {[%clk 0:01:12.6]} 22. N2e4 {[%clk 0:01:52.9]} 22... Bh3
{[%clk 0:01:07.3]} 23. Bh1 {[%clk 0:01:43.4]} 23... Kh8 {[%clk 0:01:04.3]} 24.
Bd2 {[%clk 0:01:42.2]} 24... g4 {[%clk 0:00:44.4]} 25. Ra1 {[%clk 0:01:39.8]}
25... Nhf6 {[%clk 0:00:43.5]} 26. Ra7 {[%clk 0:01:37.6]} 26... Nxe4 {[%clk
0:00:41]} 27. Bxe4 {[%clk 0:01:36.9]} 27... Bxf1 {[%clk 0:00:20.8]} 28. Qxf1
{[%clk 0:01:36.2]} 28... f3 {[%clk 0:00:21.5]} 29. Qd1 {[%clk 0:01:27.9]} 29...
Nf6 {[%clk 0:00:09.3]} 30. Bf5 {[%clk 0:01:26.2]} 30... Qe7 {[%clk 0:00:10]} 31.
exf3 {[%clk 0:01:26.5]} 31... gxf3 {[%clk 0:00:09.7]} 32. Qxf3 {[%clk
0:01:24.4]} 32... Nh7 {[%clk 0:00:07.3]} 33. Qxc6 {[%clk 0:01:11]} 33... Qf6
{[%clk 0:00:04.5]} 34. Rxb7 {[%clk 0:01:08.5]} 34... Rbd8 {[%clk 0:00:03.7]} 35.
Rd7 {[%clk 0:01:00.5]} 35... Rc8 {[%clk 0:00:04]} 36. Qd5 {[%clk 0:00:56.9]}
36... Ra8 {[%clk 0:00:04]} 37. Nf7+ {[%clk 0:00:54.2]} 37... Rxf7 {[%clk
0:00:03.5]} 38. Rxf7 {[%clk 0:00:53.4]} 38... Qd8 {[%clk 0:00:01.5]} 39. Qxd8+
{[%clk 0:00:52.6]} 39... Rxd8 {[%clk 0:00:02.4]} 40. Bxh7 {[%clk 0:00:52.8]} 1-0